Workbook

Sheet Jan
B1: Sales Records of January
B3: Product | C3: SalesPerson | D3: Sales
B4: Apple | C4: Michael | D4: 1288
B5: Broccoli | C5: Jonas | D5: 1216
B6: Tomato | C6: Nick | D6: 1651
B7: Banana | C7: Shelly | D7: 1070
B8: Strawberry | C8: Emily | D8: 1300
B9: Lemon | C9: Leonard | D9: 1242
B10: Blackberry | C10: Jackson | D10: 1047
B11: Kiwi | C11: Tony | D11: 1917

Sheet Feb
B1: Sales Records of February
B3: Product | C3: SalesPerson | D3: Sales
B4: Apple | C4: Michael | D4: 2996
B5: Broccoli | C5: Jonas | D5: 2759
B6: Tomato | C6: Nick | D6: 2860
B7: Banana | C7: Shelly | D7: 2790
B8: Strawberry | C8: Emily | D8: 2770
B9: Lemon | C9: Leonard | D9: 2082
B10: Blackberry | C10: Jackson | D10: 2381
B11: Kiwi | C11: Tony | D11: 2441

Sheet March
B1: Sales Records of March
B3: Product | C3: SalesPerson | D3: Sales
B4: Apple | C4: Michael | D4: 3707
B5: Broccoli | C5: Jonas | D5: 3538
B6: Tomato | C6: Nick | D6: 3824
B7: Banana | C7: Shelly | D7: 3520
B8: Strawberry | C8: Emily | D8: 3396
B9: Lemon | C9: Leonard | D9: 3656
B10: Blackberry | C10: Jackson | D10: 3955
B11: Kiwi | C11: Tony | D11: 3594

Sheet Summary
B1: Summary of Sales
B3: Product | C3: SalesPerson | D3: Sales
B4: Apple | C4: Michael | D4: =Jan!D4+Feb!D4+March!D4+[1]April!$D$4 -> 12943
B5: Broccoli | C5: Jonas | D5: =Jan!D5+Feb!D5+March!D5+[4]April!$D$4 -> 
B6: Tomato | C6: Nick | D6: =Jan!D6+Feb!D6+March!D6+[2]April!$D$4 -> 8335
B7: Banana | C7: Shelly | D7: =Jan!D7+Feb!D7+March!D7+[1]April!$D$4 -> 12332
B8: Strawberry | C8: Emily | D8: =Jan!D8+Feb!D8+March!D8+[3]April!$D$4 -> 7466
B9: Lemon | C9: Leonard | D9: =Jan!D9+Feb!D9+March!D9+[3]April!$D$4 -> 6980
B10: Blackberry | C10: Jackson | D10: =Jan!D10+Feb!D10+March!D10+[3]April!$D$4 -> 
B11: Kiwi | C11: Tony | D11: =Jan!D11+Feb!D11+March!D11+[1]April!$D$4 -> 12904

Sheet Error Checking
B1: Using Error Checking
B3: Product | C3: SalesPerson | D3: Sales | E3: Commission
B4: Apple | C4: Michael | D4: 1288 | E4: =D4*0.05 -> 64.4
B5: Broccoli | C5: Jonas | D5: 1216 | E5: =D5*0.05 -> 60.8
B6: Tomato | C6: Nick | D6: 1651 | E6: =D6*0.05 -> 82.55
B7: Banana | C7: Shelly | D7: 1070 | E7: 53.5
B8: Strawberry | C8: Emily | D8: 1300 | E8: =C8*B8 -> 
B9: Lemon | C9: Leonard | D9: 1242 | E9: 62.1
B10: Blackberry | C10: Jackson | D10: 1047 | E10: 52.35
B11: Kiwi | C11: Tony | D11: 1917 | E11: =su(C11,D11) -> 

Sheet Shortcut key
B1: Shortcut Key to Check Formula
B3: Product | C3: SalesPerson | D3: Sales | E3: Commission
B4: Apple | C4: Michael | D4: 1288 | E4: =D4*0.05 -> 64.4
B5: Broccoli | C5: Jonas | D5: 1216 | E5: =D5*0.05 -> 60.8
B6: Tomato | C6: Nick | D6: 1651 | E6: =D6*0.05 -> 82.55
B7: Banana | C7: Shelly | D7: 1070 | E7: 53.5
B8: Strawberry | C8: Emily | D8: 1300 | E8: =D8*0.05 -> 65
B9: Lemon | C9: Leonard | D9: 1242 | E9: 62.1
B10: Blackberry | C10: Jackson | D10: 1047 | E10: 52.35
B11: Kiwi | C11: Tony | D11: 1917 | E11: =D11*0.05 -> 95.85

Sheet Go to Special
B1: Using Go To Special
B3: Product | C3: SalesPerson | D3: Sales | E3: Commission
B4: Apple | C4: Michael | D4: 1288 | E4: =D4*0.05 -> 64.4
B5: Broccoli | C5: Jonas | D5: 1216 | E5: =C5*D5 -> 
B6: Tomato | C6: Nick | D6: 1651 | E6: =D6*0.05 -> 82.55
B7: Banana | C7: Shelly | D7: 1070 | E7: 53.5
B8: Strawberry | C8: Emily | D8: 1300 | E8: =D8*0.05 -> 65
B9: Lemon | C9: Leonard | D9: 1242 | E9: 62.1
B10: Blackberry | C10: Jackson | D10: 1047 | E10: =D10*C10 -> 
B11: Kiwi | C11: Tony | D11: 1917 | E11: =D11*0.05 -> 95.85

Sheet Jan (2)
B1: Sales Records of January
B3: Product | C3: SalesPerson | D3: Sales | E3: Commission
B4: Apple | C4: Michael | D4: 1288 | E4: =D4*0.05 -> 64.4
B5: Broccoli | C5: Jonas | D5: 1216 | E5: =C5*D5 -> 
B6: Tomato | C6: Nick | D6: 1651 | E6: =D6*0.05 -> 82.55
B7: Banana | C7: Shelly | D7: 1070 | E7: 53.5
B8: Strawberry | C8: Emily | D8: 1300 | E8: =D8*0.05 -> 65
B9: Lemon | C9: Leonard | D9: 1242 | E9: 62.1
B10: Blackberry | C10: Jackson | D10: 1047 | E10: 52.35
B11: Kiwi | C11: Tony | D11: 1917 | E11: =su(C11:D11) -> 

Sheet Feb (2)
B1: Sales Records of February
B3: Product | C3: SalesPerson | D3: Sales | E3: Commission
B4: Apple | C4: Michael | D4: 2996 | E4: =D4*0.05 -> 149.8
B5: Broccoli | C5: Jonas | D5: 2759 | E5: =D5*0.05 -> 137.95
B6: Tomato | C6: Nick | D6: 2860 | E6: =C6*D6 -> 
B7: Banana | C7: Shelly | D7: 2790 | E7: =D7*0.05 -> 139.5
B8: Strawberry | C8: Emily | D8: 2770 | E8: =D8*0.05 -> 138.5
B9: Lemon | C9: Leonard | D9: 2082 | E9: =C9*B9 -> 
B10: Blackberry | C10: Jackson | D10: 2381 | E10: 119.05
B11: Kiwi | C11: Tony | D11: 2441 | E11: =D11*0.05 -> 122.05

Sheet March (2)
B1: Sales Records of March
B3: Product | C3: SalesPerson | D3: Sales | E3: Commission
B4: Apple | C4: Michael | D4: 3707 | E4: =D4*0.05 -> 185.35
B5: Broccoli | C5: Jonas | D5: 3538 | E5: =D5*0.05 -> 176.9
B6: Tomato | C6: Nick | D6: 3824 | E6: =D6*0.05 -> 191.2
B7: Banana | C7: Shelly | D7: 3520 | E7: 176
B8: Strawberry | C8: Emily | D8: 3396 | E8: =D8*0.05 -> 169.8
B9: Lemon | C9: Leonard | D9: 3656 | E9: 182.8
B10: Blackberry | C10: Jackson | D10: 3955 | E10: 197.75
B11: Kiwi | C11: Tony | D11: 3594 | E11: =D11*0.05 -> 179.7

Sheet Chart
B1: Checking Charts
B3: Product | C3: SalesPerson | D3: Sales | E3: Commission
B4: Apple | C4: Michael | D4: 1288 | E4: =D4*0.05 -> 64.4
B5: Broccoli | C5: Jonas | D5: 1216 | E5: =D5*0.05 -> 60.8
B6: Tomato | C6: Nick | D6: 1651 | E6: =D6*0.05 -> 82.55
B7: Banana | C7: Shelly | D7: 1070 | E7: 53.5
B8: Strawberry | C8: Emily | D8: 1300 | E8: =C8*B8 -> 
B9: Lemon | C9: Leonard | D9: 1242 | E9: 62.1
B10: Blackberry | C10: Jackson | D10: 1047 | E10: 52.35
B11: Kiwi | C11: Tony | D11: 1917 | E11: =su(C11,D11) -> 

Sheet Pivot Table
B1: Checking Pivot Table
B3: Product | C3: SalesPerson | D3: Sales | E3: Commission
B4: Apple | C4: Michael | D4: 1288 | E4: =D4*0.05 -> 64.4
B5: Broccoli | C5: Jonas | D5: 1216 | E5: =D5*0.05 -> 60.8
B6: Tomato | C6: Nick | D6: 1651 | E6: =D6*0.05 -> 82.55
B7: Banana | C7: Shelly | D7: 1070 | E7: 53.5
B8: Strawberry | C8: Emily | D8: 1300 | E8: =C8*B8 -> 
B9: Lemon | C9: Leonard | D9: 1242 | E9: 62.1
B10: Blackberry | C10: Jackson | D10: 1047 | E10: 52.35
B11: Kiwi | C11: Tony | D11: 1917 | E11: =su(C11,D11) -> 

Sheet pivot
A3: Sum of Sales | B3: Column Labels
A4: Row Labels | B4: Emily | C4: Jackson | D4: Jonas | E4: Leonard | F4: Michael | G4: Nick | H4: Shelly | I4: Tony | J4: Grand Total
A5: Apple | F5: 1288 | J5: 1288
A6: 64.4 | F6: 1288 | J6: 1288
A7: Banana | H7: 1070 | J7: 1070
A8: 53.5 | H8: 1070 | J8: 1070
A9: Blackberry | C9: 1047 | J9: 1047
A10: 52.35 | C10: 1047 | J10: 1047
A11: Broccoli | D11: 1216 | J11: 1216
A12: 60.8 | D12: 1216 | J12: 1216
A13: Kiwi | I13: 1917 | J13: 1917
A14: #NAME? | I14: 1917 | J14: 1917
A15: Lemon | E15: 1242 | J15: 1242
A16: 62.1 | E16: 1242 | J16: 1242
A17: Strawberry | B17: 1300 | J17: 1300
A18: #VALUE! | B18: 1300 | J18: 1300
A19: Tomato | G19: 1651 | J19: 1651
A20: 82.55 | G20: 1651 | J20: 1651
A21: Grand Total | B21: 1300 | C21: 1047 | D21: 1216 | E21: 1242 | F21: 1288 | G21: 1651 | H21: 1070 | I21: 1917 | J21: 10731

Sheet Sheet9

Sheet ErrorList
B2: Sheet Name | C2: Cell Ref | D2: Error Type | E2: Formula
B3: Summary | C3: $D$5 | E3: =Jan!D5+Feb!D5+March!D5+'[April Sals.xlsx]April'!$D$4
B4: Summary | C4: $D$10 | E4: =Jan!D10+Feb!D10+March!D10+'[Aril Sales.xlsx]April'!$D$4
B5: Error Checking | C5: $E$8 | E5: =C8*B8
B6: Error Checking | C6: $E$11 | E6: =su(C11,D11)
B7: Go to Special | C7: $E$5 | E7: =C5*D5
B8: Go to Special | C8: $E$10 | E8: =D10*C10
B9: Jan (2) | C9: $E$5 | E9: =C5*D5
B10: Jan (2) | C10: $E$11 | E10: =su(C11:D11)
B11: Feb (2) | C11: $E$6 | E11: =C6*D6
B12: Feb (2) | C12: $E$9 | E12: =C9*B9
B13: Chart | C13: $E$8 | E13: =C8*B8
B14: Chart | C14: $E$11 | E14: =su(C11,D11)
B15: Pivot Table | C15: $E$8 | E15: =C8*B8
B16: Pivot Table | C16: $E$11 | E16: =su(C11,D11)
B17: pivot | C17: $E$8 | E17: =C8*B8
B18: pivot | C18: $E$11 | E18: =su(C11,D11)
B19: Sheet9 | C19: $E$8 | E19: =C8*B8
B20: Sheet9 | C20: $E$11 | E20: =su(C11,D11)
